bitfinex/quotes_ETHUSD_20240827
["timestamp","ask_amount","ask_price","bid_price","bid_amount"]
[1724784564586,0.06535218,2590.5,2590.2,0.55]
[1724784564783,0.06535218,2590.5,2590.2,0.861289]
[1724784567526,0.06535218,2590.5,2590.2,0.55]
[1724784567882,2.0,2590.3,2589.8,0.3872]
[1724784568101,0.06496614,2590.2,2589.6,2.4061]
[1724784568298,0.06496614,2590.2,2589.6,2.68543]
[1724784570143,2.0,2589.9,2589.2,0.3872]
[1724784570433,0.06469034,2589.8,2589.2,0.3872]
[1724784571712,0.06469034,2589.8,2589.3,0.55]
[1724784572274,0.06469034,2589.8,2589.4,2.4901]
[1724784572541,0.06469034,2589.8,2589.5,0.85401]
[1724784572839,5.4199,2590.1,2589.5,0.85401]
[1724784573010,0.06420966,2589.7,2589.5,0.85401]
[1724784573346,5.4199,2590.1,2589.5,0.85401]
[1724784573347,0.06420966,2589.6,2589.5,0.85401]
[1724784573643,5.4199,2590.1,2589.5,0.55]
[1724784574000,0.06420966,2589.6,2589.5,0.55]
[1724784574203,5.4199,2590.1,2589.5,0.55]
[1724784574425,0.06420966,2589.6,2589.5,0.55]
[1724784574597,5.4199,2590.1,2589.5,0.55]
[1724784574798,0.06420966,2589.6,2589.5,0.85401]
[1724784575036,5.4199,2590.1,2589.5,0.85401]
[1724784575241,0.06420966,2589.6,2589.5,0.85401]
[1724784575399,5.4199,2590.1,2589.5,0.85401]
[1724784575601,0.06420966,2589.6,2589.5,0.85401]
[1724784575804,5.4199,2590.1,2589.5,0.85401]
[1724784576109,5.4199,2590.1,2589.5,0.55]
[1724784576352,0.06420966,2590.0,2589.5,0.55]
[1724784576646,0.06420966,2590.0,2589.2,2.2721]
[1724784576647,0.06420966,2590.0,2589.3,0.55]
[1724784577413,2.0,2589.9,2589.0,0.00530204]
[1724784577742,2.4235,2589.5,2589.0,0.00530204]
[1724784578042,5.4235,2589.5,2589.0,0.00530204]
[1724784578222,0.06413872,2589.4,2589.0,0.00530204]
[1724784578429,0.06413872,2589.4,2589.0,0.25513224]
[1724784578939,0.06413872,2589.4,2589.0,0.00530204]
[1724784579142,0.06413872,2589.4,2589.1,0.55]
[1724784580547,0.06413872,2589.4,2589.0,0.00530204]
[1724784581274,0.06413872,2589.4,2589.0,2.49830204]
[1724784581444,0.06413872,2589.4,2589.1,0.55]
[1724784581647,0.06413872,2589.4,2589.2,0.3048302]
[1724784581829,0.06413872,2589.4,2589.3,0.55]
[1724784582033,5.0,2589.6,2589.3,0.55]
[1724784582679,0.06367357,2589.5,2589.3,0.55]
[1724784591614,2.40407357,2589.5,2589.3,0.55]
[1724784591824,5.40407357,2589.5,2589.1,0.55]
[1724784592616,3.06367357,2589.5,2589.1,0.55]
[1724784592784,0.06367357,2589.5,2589.1,0.55]
[1724784603473,2.2733,2589.4,2589.0,0.00530204]
[1724784603693,2.0,2589.3,2589.0,0.00530204]
[1724784603909,5.06335037,2589.3,2589.0,0.00530204]
[1724784607497,2.3553,2589.2,2589.0,0.00530204]
[1724784607696,5.3553,2589.2,2589.0,0.00530204]
[1724784608018,0.06306648,2589.1,2589.0,0.00530204]
[1724784608694,2.41836648,2589.1,2589.0,0.00530204]
[1724784608894,5.41836648,2589.1,2589.0,0.00530204]
[1724784609203,0.06306648,2589.1,2589.0,0.00530204]
[1724784610398,2.41836648,2589.1,2589.0,0.00530204]
[1724784610793,11.19978078,2589.1,2589.0,0.00530204]
[1724784610995,11.19978078,2589.1,2587.8,2.3867]
[1724784610996,2.0,2588.2,2587.8,2.3867]
[1724784611234,0.06234873,2588.1,2587.8,2.3867]
[1724784611736,5.0,2588.2,2587.8,2.3867]
[1724784611904,0.06215937,2588.0,2587.8,2.62537]
[1724784612107,5.0,2588.2,2587.8,2.62537]
[1724784612108,3.0,2588.2,2587.8,6.17917674]
[1724784612435,4.3571,2588.6,2587.9,1.16791767]
[1724784612436,3.0,2588.5,2587.9,1.16791767]
[1724784615079,0.06180423,2588.4,2587.9,1.16791767]
[1724784616123,0.06180423,2588.4,2587.9,0.55]
[1724784618558,0.06180423,2588.4,2588.1,2.2623]
[1724784618742,0.06180423,2588.4,2588.2,0.55]
[1724784619061,2.0,2588.6,2588.2,0.55]
[1724784619062,0.05907953,2588.3,2588.2,0.55]
[1724784619417,2.0,2588.9,2588.2,6.7323304]
[1724784619631,2.0,2588.9,2588.4,2.2623]
[1724784619931,0.05907953,2588.8,2588.5,0.55]
[1724784620317,2.0,2588.9,2588.5,0.55]
[1724784620814,0.05912694,2588.8,2588.5,0.55]
[1724784621014,0.05912694,2588.8,2588.5,0.91621724]
[1724784621224,3.0,2589.0,2588.6,2.2623]
[1724784621426,2.0,2589.2,2588.7,0.55]
[1724784627071,2.0,2589.2,2588.8,2.341]
[1724784627225,2.0,2589.2,2588.9,0.55]
[1724784628856,2.0,2589.5,2588.9,0.91635194]
[1724784629123,2.0,2589.5,2589.0,2.4441]
[1724784629462,2.0,2589.8,2589.2,2.2799]
[1724784629671,2.0,2589.8,2589.3,0.55]
[1724784630041,2.0,2589.8,2589.4,2.2799]
[1724784630375,0.06054078,2589.7,2589.4,2.2799]
[1724784630769,2.0,2589.8,2589.4,2.2799]
[1724784630929,0.06054078,2589.6,2589.4,2.2799]
[1724784631127,2.0,2589.8,2589.4,2.2799]
[1724784631358,0.06071448,2589.5,2589.4,2.2799]
[1724784631539,2.0,2589.8,2589.4,2.8299]
[1724784631723,0.06071448,2589.5,2589.4,2.8299]
[1724784631934,2.0,2589.8,2589.4,2.8299]
[1724784632484,0.10834215,2589.7,2589.4,2.8299]
[1724784632626,0.10834215,2589.7,2588.6,2.4613]
[1724784632627,2.0,2589.5,2588.6,2.4613]
[1724784633031,0.10842897,2589.4,2588.6,2.4613]
[1724784633345,0.10842897,2589.4,2588.7,2.4613]
[1724784633652,0.10842897,2589.4,2588.9,2.4613]
[1724784634054,0.10842897,2589.4,2589.0,0.55]
[1724784636333,0.10842897,2589.4,2589.1,2.491]
[1724784636535,0.10842897,2589.4,2589.2,0.55]
[1724784636760,5.0,2589.8,2589.2,0.55]
[1724784637273,0.108279,2589.7,2589.2,0.55]
[1724784637869,0.108279,2589.7,2589.3,2.491]
[1724784638045,0.108279,2589.7,2589.4,0.55]
[1724784638243,2.0,2589.8,2589.4,0.55]
[1724784638452,0.108279,2589.6,2589.4,0.55]
[1724784638649,2.0,2589.8,2589.4,0.55]
[1724784638847,0.108279,2589.5,2589.4,0.55]
[1724784639047,2.0,2589.8,2589.4,0.55]
[1724784639274,0.108279,2589.5,2589.4,0.55]
[1724784639575,2.0,2589.8,2589.4,0.55]
[1724784640046,0.108279,2589.7,2589.4,0.55]
[1724784640459,2.0,2589.8,2589.4,0.55]
[1724784640662,0.108279,2589.6,2589.4,0.55]
[1724784640827,2.0,2589.8,2589.4,0.55]
[1724784641031,0.108279,2589.5,2589.4,0.55]
[1724784641270,3.0,2590.1,2589.4,0.55]
[1724784641486,2.0,2590.0,2589.5,2.281]
[1724784641693,2.0,2590.0,2589.6,0.55]
[1724784644868,0.1088395,2589.9,2589.6,0.55]
[1724784646060,0.1088395,2589.9,2589.4,0.55]
[1724784654954,0.1088395,2589.9,2589.5,2.3764]
[1724784655154,0.1088395,2589.9,2589.6,0.55]
[1724784657067,0.1088395,2589.9,2589.7,3.92681626]
[1724784657273,0.1088395,2589.9,2589.6,0.55]
[1724784657274,0.1088395,2589.9,2589.8,4.92448838]
[1724784657483,2.0,2590.7,2589.9,2.432]
[1724784657643,2.0,2591.0,2590.6,1.4798897]
[1724784657839,0.10188355,2590.9,2590.6,1.4798897]
[1724784658046,0.10188355,2590.9,2590.5,2.432]
[1724784658397,2.0,2591.0,2590.5,2.432]
[1724784658690,0.10188355,2590.9,2590.6,0.55]
[1724784661181,3.10188355,2590.9,2590.4,0.55]
[1724784663129,0.10188355,2590.9,2590.4,0.62720016]
[1724784664222,0.10188355,2590.9,2590.4,1.20781643]
[1724784664539,0.10188355,2590.9,2590.4,0.55]
[1724784665232,0.40402837,2590.8,2590.4,0.55]
[1724784665446,2.0,2590.7,2589.7,2.4339]
[1724784665731,2.10257111,2590.7,2589.9,2.4339]
[1724784666796,2.10257111,2590.7,2590.0,0.55]
[1724784666987,2.10257111,2590.7,2590.1,2.3075]
[1724784667321,2.10257111,2590.7,2590.2,0.55]
[1724784667683,2.10257111,2590.7,2590.3,2.3075]
[1724784667906,2.10257111,2590.7,2590.4,0.55]
[1724784668524,2.10257111,2590.7,2590.5,2.3075]
[1724784668723,2.10257111,2590.7,2590.6,0.55]
[1724784669087,2.0,2590.7,2590.6,0.55]
[1724784669500,2.0997251,2590.7,2590.6,0.55]
[1724784669714,0.0997251,2590.7,2590.6,0.55]
[1724784669919,0.40402837,2590.8,2590.6,0.55]
[1724784670222,0.09979633,2590.7,2590.6,0.55]
[1724784670521,0.40402837,2590.8,2590.6,0.55]
[1724784670726,0.09979633,2590.7,2590.6,0.55]
[1724784670928,0.40402837,2590.8,2590.6,0.55]
[1724784671134,0.09979633,2590.7,2590.6,0.55]
[1724784671303,0.40402837,2590.8,2590.6,0.55]
[1724784671491,0.09979633,2590.7,2590.6,0.55]
[1724784672030,0.40402837,2590.8,2590.6,0.55]
[1724784672328,0.09970948,2590.7,2590.6,0.55]
[1724784672528,0.40402837,2590.8,2590.6,0.55]
[1724784672722,0.09970948,2590.7,2590.6,0.55]
[1724784672927,0.40402837,2590.8,2590.6,0.55]
[1724784673131,0.09970948,2590.7,2590.6,0.55]
[1724784673328,0.40402837,2590.8,2590.6,0.55]
[1724784673534,0.09970948,2590.7,2590.6,0.55]
[1724784673687,0.40402837,2590.8,2590.6,0.55]
[1724784673887,0.09970948,2590.7,2590.6,0.55]
[1724784674087,0.40402837,2590.8,2590.6,0.55]
[1724784674329,0.09970948,2590.7,2590.6,0.55]
[1724784674523,0.40402837,2590.8,2590.6,0.83575]
[1724784674734,0.09970948,2590.7,2590.6,0.83575]
[1724784674927,0.40402837,2590.8,2590.6,0.55]
[1724784675332,0.09970948,2590.7,2590.6,0.55]
[1724784675538,0.40402837,2590.8,2590.6,0.55]
[1724784675840,0.09970948,2590.7,2590.2,2.3997]
[1724784676133,0.09970948,2590.7,2590.3,0.62719953]
[1724784676356,0.40402837,2590.8,2590.4,2.2587]
[1724784676493,0.09970948,2590.6,2590.5,0.6271962]
[1724784676691,0.40402837,2590.8,2590.5,0.91578582]
[1724784676935,0.09970948,2590.6,2590.5,0.91578582]
[1724784677109,0.40402837,2590.8,2590.5,0.91578582]
[1724784677310,0.09970948,2590.6,2590.5,0.91578582]
[1724784677494,0.40402837,2590.8,2590.5,0.91578582]
[1724784677700,0.09970948,2590.6,2590.5,0.91578582]
[1724784678040,0.40402837,2590.8,2590.5,0.91578582]
[1724784678245,0.09970948,2590.6,2590.5,0.91578582]
[1724784678431,0.40402837,2590.8,2590.6,2.403]
[1724784678742,0.40402837,2590.8,2590.7,0.55]
[1724784690018,0.50408602,2590.8,2590.7,0.55]
[1724784696142,0.50408602,2590.8,2590.7,2.02830984]
[1724784696486,0.50408602,2590.8,2590.7,0.55]
[1724784697612,0.50408602,2590.8,2590.7,2.02830984]
[1724784697802,0.50408602,2590.8,2590.7,2.47144082]
[1724784699003,0.50408602,2590.8,2590.7,0.99313098]
[1724784699206,0.50408602,2590.8,2590.7,0.55]
[1724784705929,0.50408602,2590.8,2590.6,0.55]
[1724784706521,0.50408602,2590.8,2590.7,1.47830984]
[1724784706690,0.50408602,2590.8,2590.7,4.43110984]
[1724784706891,0.50408602,2590.8,2590.7,4.92922082]
[1724784710013,3.0,2591.5,2590.8,2.3628]
[1724784710325,2.0,2591.6,2591.2,2.3628]
[1724784710826,2.0,2591.6,2591.3,0.55]
[1724784711591,3.0,2591.7,2591.3,0.55]
[1724784711919,5.4136,2591.8,2591.3,2.02830984]
[1724784712145,3.0,2591.8,2591.5,1.47830984]
[1724784712424,2.0,2591.9,2591.6,0.55]
[1724784712783,2.0,2591.9,2591.4,0.55]
[1724784713524,5.0,2591.9,2591.4,0.55]
[1724784714440,2.3981,2591.8,2591.4,0.55]
[1724784714728,2.0,2591.6,2591.0,2.4019]
[1724784714884,2.0,2591.6,2591.1,0.55]
[1724784715734,2.0,2591.6,2591.1,2.02830984]
[1724784716093,2.0,2591.6,2591.1,0.55]
[1724784717500,0.09452992,2591.5,2591.1,0.55]
[1724784718330,2.0,2591.6,2591.1,0.55]
[1724784720587,3.0,2591.7,2591.2,2.4133]
[1724784720839,2.0,2591.9,2591.2,2.4133]
[1724784720840,0.09452992,2591.5,2591.3,0.84633]
[1724784720995,2.0,2591.9,2591.3,0.55]
[1724784721633,0.09452992,2591.8,2591.3,0.55]
[1724784722217,2.2707,2591.7,2591.3,0.55]
[1724784722765,0.09452992,2591.6,2591.3,0.55]
[1724784723421,2.09452992,2591.6,2591.1,0.55]
[1724784723587,5.09452992,2591.6,2591.1,0.55]
[1724784723791,5.09452992,2591.6,2590.9,2.9552]
[1724784723992,2.09452992,2591.6,2591.0,2.4052]
[1724784724237,2.09452992,2591.6,2591.2,2.4052]
[1724784724726,2.09452992,2591.6,2591.3,0.55]
[1724784725818,0.40398731,2591.5,2591.3,0.55]
[1724784726192,0.09446665,2591.4,2591.3,0.55]
[1724784726930,2.49546665,2591.4,2590.7,2.2639]
[1724784727131,5.49546665,2591.4,2590.8,0.55]
[1724784727650,2.0,2591.2,2590.7,2.2639]
[1724784728404,0.09446665,2591.1,2590.7,2.2639]
[1724784728728,2.0,2591.2,2590.7,2.2639]
[1724784729041,0.09446665,2591.0,2590.7,2.2639]
[1724784729335,2.0,2591.2,2590.7,2.2639]
[1724784729563,0.09446665,2590.9,2590.8,0.55]
[1724784729708,2.2999,2591.0,2590.5,7.37]
[1724784729908,0.09446665,2590.9,2590.5,7.37]
[1724784731242,0.09446665,2590.9,2590.6,0.55]
[1724784732545,2.09446665,2590.9,2590.2,2.2718]
[1724784732841,2.09446665,2590.9,2590.3,0.55]
[1724784733009,5.09446665,2590.9,2590.3,0.55]
[1724784733633,5.09446665,2590.9,2590.4,2.4949]
[1724784733634,3.09446665,2590.9,2590.4,2.4949]
[1724784733944,0.09446665,2590.9,2590.5,0.55]
[1724784734173,3.0,2591.1,2590.5,1.26419711]
[1724784734354,0.0942056,2590.8,2590.5,1.26419711]
[1724784734559,3.0,2591.1,2590.5,1.26419711]
[1724784734738,0.0942056,2590.7,2590.5,1.26419711]
[1724784734940,3.0,2591.1,2590.5,1.26419711]
[1724784735285,3.0,2591.1,2590.6,2.4949]
[1724784735426,2.0,2591.2,2590.7,0.55]
[1724784737466,2.0,2590.9,2590.4,7.37]
[1724784737627,2.0,2590.9,2590.5,0.55]
[1724784739590,2.0,2590.9,2590.4,7.37]
[1724784739745,2.0,2590.6,2590.4,7.37]
[1724784741040,2.3106,2590.5,2589.8,2.3709]
[1724784741267,2.3106,2590.5,2589.8,3.6129]
[1724784741268,5.3106,2590.5,2589.8,3.6129]
[1724784741597,5.3106,2590.5,2589.5,7.7572]
[1724784741598,2.0,2590.2,2589.6,2.3709]
[1724784741768,2.0,2590.2,2589.7,1.01281]
[1724784741952,0.09331171,2590.1,2589.7,1.01281]
[1724784742169,0.09331171,2590.1,2589.8,2.44811921]
[1724784742341,3.40407319,2590.6,2590.1,2.3709]
[1724784742546,0.40407319,2590.6,2590.3,2.3709]
[1724784742851,0.40407319,2590.6,2590.3,2.44810139]
[1724784743044,0.40407319,2590.6,2590.4,0.55]
[1724784743242,0.40407319,2590.6,2590.5,0.29981014]
[1724784743574,0.40407319,2590.6,2590.5,3.22071014]
[1724784743737,0.40407319,2590.6,2590.5,2.9209]
[1724784744950,2.0,2590.9,2590.5,2.9209]
[1724784745163,2.0,2590.9,2590.6,0.55]
[1724784746715,2.0,2590.9,2590.3,2.4792]
[1724784747010,5.0,2590.9,2590.3,2.78629971]
[1724784747220,2.0,2590.9,2590.3,2.78629971]
[1724784747379,5.0,2590.9,2590.3,2.78629971]
[1724784748522,5.0,2590.9,2590.4,0.55]
[1724784749512,0.01295039,2597.1,2590.6,3.54707105]
[1724784749513,2.4393,2591.4,2590.6,3.54707105]
[1724784749675,2.4393,2591.4,2590.8,2.4226]
[1724784750189,0.08709431,2591.3,2590.9,0.55]
[1724784750394,2.4393,2591.4,2590.9,0.55]
[1724784751302,0.08709431,2591.3,2590.9,0.55]
[1724784752115,2.0,2591.5,2590.9,0.55]
[1724784752317,0.08709431,2591.2,2590.9,0.55]
[1724784752618,2.0,2591.5,2590.9,0.55]
[1724784753309,0.08709431,2591.4,2590.9,0.55]
[1724784753508,2.0,2591.5,2591.0,0.29726]
[1724784753715,0.08709431,2591.4,2591.1,0.55]
[1724784754639,2.0,2591.5,2591.1,0.55]
[1724784754809,0.08709431,2591.3,2591.1,0.55]
[1724784755004,2.0,2591.5,2591.1,0.55]
[1724784755325,0.40399264,2591.4,2591.1,0.55]
[1724784755522,0.40399264,2591.4,2590.9,0.55]
[1724784755713,0.08709431,2591.3,2590.9,0.55]
[1724784755913,0.08709431,2591.3,2590.9,0.84726]
[1724784758018,0.08709431,2591.3,2590.9,0.92444346]
[1724784758342,0.40399264,2591.4,2591.0,2.3505]
[1724784758522,0.40399264,2591.4,2590.7,0.3872]
[1724784758523,0.08709431,2591.2,2591.1,2.9005]
[1724784758727,0.40399264,2591.4,2591.1,2.9005]
[1724784758915,0.08709431,2591.3,2591.2,3.91429457]
[1724784759109,0.40399264,2591.4,2591.2,6.65199457]
[1724784759427,0.40399264,2591.4,2591.3,2.97766853]
[1724784759741,0.40399264,2591.4,2591.3,3.75286749]
[1724784763413,0.40399264,2591.4,2591.3,3.67569896]
[1724784763617,0.49175343,2591.4,2591.3,2.9005]
[1724784764530,0.40399264,2591.4,2591.3,2.9005]
[1724784765159,0.40399264,2591.4,2591.3,0.54896313]
[1724784765368,0.4924437,2591.4,2591.3,0.54896313]
[1724784765656,0.4924437,2591.4,2591.3,0.87840944]
[1724784766823,0.40399264,2591.4,2591.3,0.87840944]
[1724784768033,0.40399264,2591.4,2591.3,0.54896313]
[1724784768214,0.4924199,2591.4,2590.9,2.3583]
[1724784768618,0.40399264,2591.4,2590.9,2.3583]
[1724784769117,0.40399264,2591.4,2590.8,0.3872]
[1724784769118,2.0,2591.3,2590.8,0.3872]
[1724784769315,2.0,2591.3,2590.7,9.7283]
[1724784769316,2.08842726,2591.3,2590.7,9.7283]
[1724784770648,2.08842726,2591.3,2590.8,0.55]
[1724784770974,0.08842726,2591.2,2590.8,0.55]
[1724784771150,2.0,2591.3,2590.8,0.55]
[1724784771320,0.08842726,2591.1,2590.8,0.55]
[1724784771519,0.40405427,2591.2,2590.8,0.55]
[1724784771759,0.08842726,2591.1,2590.8,0.55]
[1724784775768,0.40405427,2591.2,2590.8,0.55]
[1724784777066,0.08842726,2591.1,2590.8,0.55]
[1724784777986,0.40405427,2591.2,2590.8,0.55]
[1724784781683,0.40405427,2591.2,2591.0,2.3842]
[1724784781892,0.40405427,2591.2,2591.1,0.55]
[1724784782408,0.49219597,2591.2,2591.1,0.55]
[1724784784609,0.49219597,2591.2,2590.9,0.55]
[1724784784802,0.40405427,2591.2,2590.9,0.55]
[1724784785147,0.40405427,2591.2,2591.0,0.07718224]
[1724784785299,0.40405427,2591.2,2591.1,0.55]
[1724784785704,0.49219597,2591.2,2591.1,0.55]
[1724784787135,0.49219597,2591.2,2591.0,0.55]
[1724784787501,0.40405427,2591.2,2591.0,0.55]
[1724784788097,0.40405427,2591.2,2591.1,0.0771824]
[1724784788297,0.40405427,2591.2,2591.1,3.011]
[1724784788595,0.40405427,2591.2,2591.1,0.55]
[1724784788797,0.49210078,2591.2,2591.1,0.55]
[1724784789001,0.40405427,2591.2,2591.0,0.55]
[1724784789239,0.40405427,2591.2,2591.0,0.7961]
[1724784790759,0.08804651,2591.1,2591.0,0.55]
[1724784791262,0.08804651,2591.1,2590.8,0.55]
[1724784797218,2.35744651,2591.1,2590.8,0.55]
[1724784797379,2.35744651,2591.1,2590.5,2.8731]
[1724784797582,2.2694,2591.1,2590.5,2.8731]
[1724784797780,2.2694,2591.1,2590.5,5.13941]
[1724784798042,2.2694,2591.1,2590.5,2.8731]
[1724784798775,2.2694,2591.1,2590.6,0.55]
[1724784799112,0.08804651,2591.0,2590.6,0.55]
[1724784799813,0.40377425,2590.9,2590.6,0.55]
[1724784799978,0.49182076,2590.9,2590.6,1.62931]
[1724784800177,0.40377425,2590.9,2590.6,1.62931]
[1724784800618,0.08804651,2590.8,2590.6,1.62931]
[1724784801233,0.40377425,2590.9,2590.6,1.62931]
[1724784802427,0.40377425,2590.9,2590.6,1.60731]
[1724784805211,0.40377425,2590.9,2590.6,0.528]
[1724784805593,2.3896,2590.8,2590.5,0.55]
[1724784806194,2.0,2590.7,2590.1,9.6507]
[1724784806389,5.0,2590.7,2590.1,9.6507]
[1724784807707,5.0,2590.7,2590.2,0.55]
[1724784810401,0.08780055,2590.6,2590.2,0.55]
[1724784811637,2.4491,2590.5,2590.2,0.55]
[1724784811841,2.53646413,2590.5,2590.2,0.55]
[1724784812141,2.0,2590.4,2590.0,0.55]
[1724784812531,0.08735619,2590.3,2590.0,0.55]
[1724784815107,0.40412933,2590.2,2590.0,0.55]
[1724784815518,0.08734825,2590.1,2590.0,0.55]
[1724784816329,0.08734825,2590.1,2589.8,0.55]
[1724784816642,0.40412933,2590.2,2589.8,1.24691711]
[1724784818546,2.85572933,2590.2,2589.8,1.24691711]
[1724784818746,2.85572933,2590.2,2589.8,0.55]
[1724784820351,2.85572933,2590.2,2589.6,0.3872]
[1724784820352,2.0,2590.0,2589.6,0.3872]
[1724784821355,3.0,2590.1,2589.8,2.3016]
[1724784821525,0.40412933,2590.2,2589.9,0.55]
[1724784821847,0.08351791,2590.1,2589.9,0.55]
[1724784822357,4.4516,2590.0,2589.5,7.37]
[1724784822729,3.0,2589.9,2589.5,7.37]
[1724784823128,0.08351791,2589.8,2589.5,7.37]
[1724784823425,3.0,2589.9,2589.5,7.37]
[1724784823626,0.08351791,2589.7,2589.5,7.37]
[1724784823861,3.0,2589.9,2589.6,0.55]
[1724784824011,2.53511791,2589.6,2589.5,7.37]
[1724784824366,2.53511791,2589.6,2588.7,3.54707105]
[1724784824367,4.4516,2589.6,2588.9,2.3016]
[1724784824546,4.4516,2589.6,2588.9,2.53176]
[1724784824872,0.08351791,2589.5,2588.9,2.53176]
[1724784825166,3.08351791,2589.5,2588.9,2.3016]
[1724784825347,3.08351791,2589.5,2588.3,3.86344]
[1724784825348,3.08351791,2589.5,2588.8,2.6888]
[1724784825520,2.4516,2589.4,2588.8,2.6888]
[1724784825958,2.4516,2589.4,2588.3,3.86344]
[1724784825959,2.4516,2589.4,2588.5,0.3872]
[1724784826125,0.08351791,2589.3,2588.5,0.3872]
[1724784826459,0.08351791,2589.3,2588.6,2.4687]
[1724784826617,0.08351791,2589.3,2588.7,0.83559]
[1724784828265,0.08351791,2589.3,2588.7,1.22279]
[1724784828761,2.4516,2589.4,2588.7,1.22279]
[1724784829261,3.0,2589.5,2589.1,2.4033]
[1724784829446,0.08351791,2589.3,2589.2,0.62723458]
[1724784829644,5.0,2589.6,2589.2,0.62723458]
[1724784830021,0.08351791,2589.5,2589.2,0.62723458]
[1724784830362,0.48772306,2589.5,2589.2,0.62723458]
[1724784831550,0.40420515,2589.5,2589.2,0.62723458]
[1724784831736,2.2534,2589.4,2589.2,0.55]
[1724784831936,5.2534,2589.4,2588.8,7.37]
[1724784832560,0.08351791,2589.3,2588.8,7.37]
[1724784833660,0.08351791,2589.3,2588.9,0.55]
[1724784833959,2.2534,2589.2,2588.8,7.37]
[1724784834561,0.08351791,2589.1,2588.8,7.37]
[1724784835471,2.2534,2589.2,2588.8,7.37]
[1724784835687,0.08351791,2589.0,2588.9,0.55]
[1724784835893,2.2534,2589.2,2588.9,0.55]
[1724784836200,0.08269868,2589.0,2588.9,0.55]
[1724784836402,5.2534,2589.2,2588.9,0.55]
[1724784836547,0.08269868,2589.0,2588.9,0.55]
[1724784836747,5.2534,2589.2,2588.9,0.55]
[1724784836948,0.08269868,2589.0,2588.9,0.55]
[1724784837190,5.2534,2589.2,2588.9,0.55]
[1724784837806,0.08269868,2589.1,2588.9,0.55]
[1724784837969,0.08269868,2589.1,2588.4,9.7733]
[1724784837970,2.2567,2589.0,2588.4,7.37]
[1724784838293,2.2567,2589.0,2588.5,0.55]
[1724784838474,0.08269868,2588.9,2588.5,0.55]
[1724784839084,2.08269868,2588.9,2588.4,7.37]
[1724784840584,2.08269868,2588.9,2588.5,0.55]
[1724784843393,2.08269868,2588.9,2588.4,0.9372]
[1724784845394,2.08269868,2588.9,2588.5,2.4249]
[1724784845599,2.08269868,2588.9,2588.6,0.55]
[1724784845759,0.40432127,2588.8,2588.6,0.55]
[1724784846385,0.08137004,2588.7,2588.6,0.55]
[1724784846701,0.40432127,2588.8,2588.6,0.55]
[1724784846849,0.08137004,2588.7,2588.6,0.55]
[1724784847071,0.40432127,2588.8,2588.6,0.55]
[1724784847273,0.40432127,2588.8,2588.7,0.07725687]
[1724784847517,0.40432127,2588.8,2588.7,3.0475]
[1724784848093,0.40432127,2588.8,2588.7,3.4347]
[1724784850313,0.40432127,2588.8,2588.7,3.0475]
[1724784850517,0.40432127,2588.8,2588.7,3.4347]
[1724784850814,0.40432127,2588.8,2588.7,3.8086916]
[1724784852016,0.40432127,2588.8,2588.7,3.0475]
[1724784862569,0.40432127,2588.8,2588.7,3.4347]
[1724784862773,0.40432127,2588.8,2588.7,3.51194475]
[1724784863330,0.40432127,2588.8,2588.7,3.4347]
[1724784864135,0.40432127,2588.8,2588.7,4.91507568]
[1724784864348,0.40432127,2588.8,2588.7,5.43710485]
[1724784865442,0.48552418,2588.8,2588.7,5.43710485]
[1724784865661,0.40432127,2588.8,2588.7,5.43710485]
[1724784865907,0.40432127,2588.8,2588.7,3.95672917]
[1724784867481,0.40432127,2588.8,2588.7,1.45922917]
[1724784869281,0.40432127,2588.8,2588.7,0.9372]
[1724784870690,0.40432127,2588.8,2588.5,0.3872]
[1724784870887,0.48552418,2588.8,2588.2,2.6912]
[1724784871153,0.40432127,2588.8,2588.2,4.70015757]
[1724784871431,0.40432127,2588.8,2588.2,6.18053325]
[1724784871989,0.40432127,2588.8,2588.3,0.55]
[1724784872894,0.08120291,2588.7,2588.3,0.55]
[1724784873097,0.08120291,2588.7,2588.3,1.96005333]
[1724784873340,0.40432127,2588.8,2588.3,1.96005333]
[1724784874332,0.17689055,2588.8,2588.7,1.48037568]
[1724784874648,0.60564944,2590.9,2588.7,4.59691565]
[1724784874649,2.4633,2589.6,2588.7,4.59691565]
[1724784874808,2.4633,2589.6,2588.9,1.48037568]
[1724784875008,2.4633,2589.6,2589.0,0.62723621]
[1724784875334,2.4633,2589.6,2589.0,2.10761189]
[1724784876192,2.4633,2589.6,2589.0,0.62723621]
[1724784876395,0.08125865,2589.5,2589.0,0.92646926]
[1724784876593,0.08125865,2589.5,2589.0,2.40684494]
[1724784876794,3.08125865,2589.5,2589.0,2.40684494]
[1724784877443,3.08125865,2589.5,2589.0,0.92646926]
[1724784877612,3.08125865,2589.5,2589.1,0.24068449]
[1724784877815,3.0,2589.5,2589.2,0.62723545]
[1724784878128,2.4633,2589.6,2589.1,0.07723539]
[1724784878323,2.4633,2589.6,2589.2,0.55]
[1724784881805,0.08125865,2589.5,2589.2,0.55]
[1724784882005,2.4633,2589.6,2589.2,0.55]
[1724784883943,3.0,2589.7,2589.2,0.55]
[1724784884131,4.3629,2589.8,2589.2,0.55]
[1724784884334,0.08125865,2589.6,2589.2,0.55]
[1724784884635,3.0,2589.7,2589.2,0.55]
[1724784884863,0.08125865,2589.5,2589.2,0.55]
[1724784885068,3.0,2589.7,2589.2,0.55]
[1724784885267,0.08125865,2589.4,2589.2,0.55]
[1724784885431,3.0,2589.7,2589.2,0.55]
[1724784885636,0.08125865,2589.3,2589.2,0.55]
[1724784885868,3.0,2589.7,2589.2,0.86951684]
[1724784886072,0.08125865,2589.3,2589.2,0.55]